[Event "Superbet Blitz Poland 2023"]
[Site "Warsaw"]
[Date "2023.05.24"]
[Round "1"]
[White "Carlsen, Magnus"]
[Black "Vachier-Lagrave, Maxime"]
[Result "1-0"]
[ECO "A37"]
[WhiteElo "2853"]
[BlackElo "2742"]
[Annotator "TA"]
[PlyCount "89"]
[EventDate "2023.05.24"]
[EventType "tourn"]
[EventCountry "POL"]
[SourceTitle "playchess.com"]
[Source "ChessBase"]
[SourceQuality "1"]
[TimeControl "300+2"]

{[%evp 18,89,0,0,15,15,12,10,23,5,59,65,58,60,55,58,61,43,82,75,95,102,99,109,116,87,125,120,114,119,121,118,142,139,153,153,153,153,195,196,210,140,141,145,178,101,347,354,478,503,497,491,508,493,468,347,503,511,503,503,493,418,396,396,724,708,886,886,886,886,879,879,5714,1143]} 1. Nf3 {[%emt 0:00:01] Sumets,Andrey} c5 {[%emt 0:00:02]} 2. c4 {[%emt 0:00:20]} Nc6 {[%emt 0:00:05]} 3. Nc3 {[%emt 0:00:02]} e5 {[%emt 0:00:02]} 4. g3 {[%emt 0:00:02]} g6 {[%emt 0:00:01]} 5. Bg2 {[%emt 0:00:02]} Bg7 {[%emt 0:00:02]} 6. d3 {[%emt 0:00:11]} d6 {[%emt 0:00:05]} 7. O-O {[%emt 0:00:05]} Nge7 {[%emt 0:00:02]} 8. a3 {[%emt 0:00:06]} a5 {[%emt 0:00:01]} 9. Rb1 {[%emt 0:00:20]} O-O {[%emt 0:00:04]} 10. Bg5 {[%emt 0:00:03]} Be6 {[%emt 0:00:11] A37: Symmetrical English vs ...g6: 4 Bg2 Bg7 5 Nf3.} 11. Bxe7 {[%emt 0:00:09]} Qxe7 {[%emt 0:00:04]} 12. Nd2 {[%emt 0:00:06] [#]} f5 $146 {[%emt 0:00:08] The position is equal.} ({Predecessor:} 12... Rfc8 13. Nd5 Qd8 14. b4 axb4 15. axb4 Bxd5 16. Bxd5 cxb4 17. Ne4 Rc7 18. Qd2 Kh8 {0-1 Carlsen,M (2868)-Wang,H (2743) Norway Chess 1st 2013 (8)}) 13. Nd5 {[%emt 0:00:20]} Qf7 {[%emt 0:00:02]} (13... Qd8 $11) 14. b4 $14 {[%emt 0:00:03]} axb4 {[%emt 0:00:23]} 15. axb4 {[%emt 0:00:02]} cxb4 {[%emt 0:01:37]} 16. Nxb4 {[%emt 0:00:01]} Rfc8 {[%emt 0:00:01]} 17. Nd5 {[%emt 0:00:02]} Ra7 {[%emt 0:00:13]} 18. e3 {[%emt 0:00:18]} h5 {[%emt 0:00:02]} 19. Nf3 {[%emt 0:00:05] [#] Black must now prevent Ng5. Excellent horsemanship.} Bh6 {[%emt 0:00:10] Repels Ng5} (19... Bxd5 $2 20. Nxe5 Qe8 21. Bxd5+ Kh7 22. Nf3 $18) 20. h4 {[%emt 0:00:43]} Kg7 {[%emt 0:00:03]} (20... Bxd5 $2 21. Nxe5 Qe8 22. Bxd5+ Kh7 23. Nf7 $18) 21. Rb5 {[%emt 0:00:10]} Ne7 {[%emt 0:00:36][%cal Re7d5]} 22. Qb3 {[%emt 0:00:22] White is more active.} Bxd5 {[%emt 0:00:16]} 23. cxd5 {[%emt 0:00:02]} Rc7 {[%emt 0:00:17]} 24. Nd2 {[%emt 0:00:52]} Nc8 {[%emt 0:00:05]} 25. Nc4 {[%emt 0:00:02]} Kh7 {[%emt 0:00:14]} 26. Bh3 {[%emt 0:00:12]} Qf6 {[%emt 0:00:31]} 27. e4 {[%emt 0:00:13][%cal Od3d4]} Ne7 {[%emt 0:00:01]} 28. Qb4 {[%emt 0:00:06]} Nc8 {[%emt 0:00:15]} 29. Ra5 {[%emt 0:00:18] Dodges b6} Rxa5 {[%emt 0:00:02]} 30. Qxa5 {[%emt 0:00:01]} Rf7 {[%emt 0:00:07]} 31. Qa8 {[%emt 0:00:09] Black is weak on the light squares} (31. Qa4 $18) 31... Ne7 $2 {[%emt 0:00:02] A mistake that costs the game.} (31... b5 $16) 32. Qb8 $18 {[%emt 0:00:04]} ({Not} 32. Qxb7 Ng8 33. Qb6 Bf8 $18) 32... b5 {[%emt 0:00:12]} 33. Nxd6 {[%emt 0:00:03]} (33. Qxb5 Bf8 34. Qb6 Ng8 $18) 33... Rf8 {[%emt 0:00:01]} 34. Qc7 {[%emt 0:00:02]} ({Weaker is} 34. Qxb5 Qxd6 35. Ra1 fxe4 36. dxe4 Qc7 $17) 34... Bg7 {[%emt 0:00:02]} 35. Nxb5 {[%emt 0:00:04]} f4 {[%emt 0:00:04]} 36. Qd6 {[%emt 0:00:07]} fxg3 {[%emt 0:00:03]} (36... Ng8 $142 37. Qc5 Rb8) 37. Qxf6 {[%emt 0:00:03]} Rxf6 {[%emt 0:00:02]} 38. fxg3 {[%emt 0:00:01]} Rb6 {[%emt 0:00:02]} 39. d6 {[%emt 0:00:07]} Nc6 {[%emt 0:00:02]} 40. Nc7 {[%emt 0:00:02]} Rb3 $2 {[%emt 0:00:06]} (40... Nd8 41. d7 Bh6) 41. Ne6 {[%emt 0:00:08] [#] Strongly threatening Rf7. White is clearly winning.} Bh6 {[%emt 0:00:01]} 42. Rf7+ {[%emt 0:00:03]} Kg8 {[%emt 0:00:01]} 43. Rc7 {[%emt 0:00:01]} Be3+ {[%emt 0:00:02]} 44. Kf1 {[%emt 0:00:02]} Nb4 {[%emt 0:00:05]} 45. d7 {[%emt 0:00:04] Weighted Error Value: White=0.14 (very precise) /Black=0.39} (45. Ng5 $142 Bxg5 46. Be6+ Kf8 47. Bxb3) 1-0

[Event "Superbet Blitz Poland 2023"]
[Site "Warsaw"]
[Date "2023.05.24"]
[Round "1"]
[White "Giri, Anish"]
[Black "Aronian, Levon"]
[Result "1-0"]
[ECO "C54"]
[WhiteElo "2768"]
[BlackElo "2745"]
[Annotator "TA"]
[PlyCount "151"]
[EventDate "2023.05.24"]
[EventType "tourn"]
[EventCountry "POL"]
[SourceTitle "playchess.com"]
[Source "ChessBase"]
[SourceQuality "1"]
[TimeControl "300+2"]

{[%evp 10,151,9,17,25,9,23,9,14,11,14,11,9,8,8,7,14,16,32,20,27,36,27,31,66,66,64,64,75,64,70,62,72,72,72,72,73,58,71,75,83,89,73,83,131,120,135,135,135,138,175,171,183,183,183,176,202,209,252,159,151,151,184,184,245,251,319,329,390,383,433,421,425,409,468,468,468,419,469,445,447,447,608,599,6095,1609,1500,1432,29986,580,580,580,879,875,898,483,865,804,5065,3235,29978,-493,-448,-513,1368,1396,1371,1372,1333,264,1297,1258,1290,1258,2121,2057,1807,1814,1629,1579,1679,1653,1603,1550,1895,1828,1978,1902,2064,1876,3050,3190,29978,29979,29980,29980,29980,29981,29981,29982,29986,29987,29988,29989]} 1. e4 {[%emt 0:00:01]} e5 {[%emt 0:00:02]} 2. Nf3 {[%emt 0:00:01]} Nc6 {[%emt 0:00:02]} 3. Bc4 {[%emt 0:00:00]} Bc5 {[%emt 0:00:03]} 4. O-O {[%emt 0:00:03]} Nf6 {[%emt 0:00:03]} (4... d6 5. c3 Qf6 6. b4 Bb6 7. a4 a6 8. d3 Nge7 9. Be3 O-O 10. Nbd2 Bxe3 11. fxe3 Qh6 12. Qe2 Kh8 13. d4 Ng6 14. b5 Na5 15. Ba2 f5 16. exf5 Bxf5 17. dxe5 dxe5 18. Bb1 Qh5 19. Be4 Nh4 20. bxa6 Rxa6 21. Bxf5 Nxf5 {1-0 Giri,A (2760)-Aronian,L (2775) Miami FTX Crypto Cup rapid 2022 (5.2)}) 5. d3 {[%emt 0:00:00]} d6 {[%emt 0:00:08]} 6. c3 {[%emt 0:00:01]} a5 {[%emt 0:00:07] The modern move. C54: Giuoco Piano: 4 c3 Nf6, main lines with 5 d4 and 5 d3.} 7. Re1 {[%emt 0:00:08]} (7. Bg5 $5 {[%cal Rd3d4]}) 7... Ba7 {[%emt 0:00:03]} 8. Nbd2 {[%emt 0:00:18]} O-O {[%emt 0:00:09] The position is equal.} 9. h3 {[%emt 0:00:16]} Be6 {[%emt 0:00:24]} 10. Bb5 {[%emt 0:00:01]} Ne7 {[%emt 0:00:18]} 11. d4 {[%emt 0:00:01]} Ng6 {[%emt 0:00:02]} 12. Ba4 {[%emt 0:00:02]} c6 {[%emt 0:00:28]} 13. Bc2 {[%emt 0:00:19]} b5 {[%emt 0:00:31]} 14. a4 {[%emt 0:00:30]} b4 {[%emt 0:00:02]} 15. Nf1 {[%emt 0:00:02][%cal Bd2f1,Bf1g3,Bg3f5][%mdl 32] [#]} Qc7 $146 {[%emt 0:00:27]} ({Predecessor:} 15... Rb8 16. Ng3 h6 17. Be3 Qc7 18. Qc1 Kh7 19. Nf5 Ng8 20. h4 f6 21. h5 Nh8 {½-½ Cheparinov,I (2661)-Suleymanli,A (2552) EU-ch 23rd Vrnjacka Banja 2023 (10)}) 16. Ng3 {[%emt 0:00:06]} c5 {[%emt 0:00:02]} 17. d5 {[%emt 0:00:11]} Bd7 {[%emt 0:00:17]} 18. c4 {[%emt 0:00:01]} Kh8 {[%emt 0:00:01]} 19. Nf5 {[%emt 0:00:15]} Rae8 {[%emt 0:00:17]} 20. g4 {[%emt 0:00:56]} Bb6 {[%emt 0:00:03]} 21. Be3 {[%emt 0:00:10]} Qb8 {[%emt 0:00:02]} 22. Qd2 {[%emt 0:00:02]} Bd8 {[%emt 0:00:03]} 23. b3 {[%emt 0:00:01]} Ne7 {[%emt 0:00:23]} 24. Kh1 {[%emt 0:00:24]} Nfg8 {[%emt 0:00:05]} 25. Rg1 {[%emt 0:00:04]} g6 {[%emt 0:00:26]} 26. Ng3 {[%emt 0:00:16] White is much more active.} Qc8 {[%emt 0:00:08]} ({Black should try} 26... Qc7) 27. Nh2 $16 {[%emt 0:00:34]} f6 {[%emt 0:00:26]} 28. f4 {[%emt 0:00:05]} exf4 {[%emt 0:00:15]} 29. Bxf4 {[%emt 0:00:01]} Bc7 {[%emt 0:00:01]} 30. Raf1 {[%emt 0:00:04]} g5 {[%emt 0:00:01]} 31. Be3 {[%emt 0:00:06][%cal Oe4e5]} Ng6 {[%emt 0:00:01]} 32. Rf2 {[%emt 0:00:12]} Bd8 {[%emt 0:00:02]} 33. Rgf1 {[%emt 0:00:09]} Be7 {[%emt 0:00:01]} 34. Nh5 {[%emt 0:00:14]} Ne5 {[%emt 0:00:12]} 35. Nf3 {[%emt 0:00:03]} h6 {[%emt 0:00:09]} 36. Ng3 {[%emt 0:00:16]} Bd8 {[%emt 0:00:09]} (36... Qb7 {was necessary.} 37. Kg2 Bc8) 37. Nxe5 $18 {[%emt 0:00:06]} dxe5 {[%emt 0:00:13]} 38. Nf5 {[%emt 0:00:00]} Bxf5 {[%emt 0:00:06]} 39. gxf5 {[%emt 0:00:02]} (39. exf5 e4 40. d6 Qc6 $18) (39. Rxf5 Rf7 40. Qf2 Be7 $18) 39... Kg7 {[%emt 0:00:04] Black is weak on the light squares} 40. Bd1 {[%emt 0:00:00]} Re7 {[%emt 0:00:02]} 41. Bh5 {[%emt 0:00:01]} Rd7 {[%emt 0:00:02] [#]} 42. h4 $1 {[%emt 0:00:01][%mdl 512]} Be7 {[%emt 0:00:01]} (42... Rb7 43. Rh2) 43. Rg2 {[%emt 0:00:01]} Qd8 {[%emt 0:00:01]} 44. Qe2 {[%emt 0:00:01]} Bd6 {[%emt 0:00:04]} 45. Rfg1 {[%emt 0:00:01][%cal Rh4g5]} Kh8 {[%emt 0:00:02]} 46. Bg6 {[%emt 0:00:02][%cal Rh4g5] aiming for hxg5.} Ne7 {[%emt 0:00:02]} 47. Qh5 {[%emt 0:00:02]} (47. hxg5 $142 Nxg6 48. fxg6 fxg5 49. Qh5) 47... Nxg6 {[%emt 0:00:00]} 48. fxg6 {[%emt 0:00:01][%cal Rh4g5]} Kg7 {[%emt 0:00:04]} 49. Rh2 {[%emt 0:00:01]} (49. hxg5 $142 fxg5 50. Bxg5 Qxg5 51. Rxg5 Be7 52. Rxe5 Rf4 53. Qh3 Rb7 54. Rh5) 49... Rh8 {[%emt 0:00:01]} 50. Rf1 {[%emt 0:00:03] Hoping for hxg5.} Qe8 {[%emt 0:00:02]} 51. hxg5 {[%emt 0:00:05]} fxg5 {[%emt 0:00:01]} 52. Qg4 {[%emt 0:00:12]} Re7 {[%emt 0:00:01]} (52... Rb7 $142 53. Rhf2 Rf8) 53. Rf5 {[%emt 0:00:09]} Qxg6 {[%emt 0:00:01] [#]} 54. Bxg5 $1 {[%emt 0:00:03][%mdl 512]} Rf7 {[%emt 0:00:06] [#] Wards off Bf6+} (54... hxg5 55. Rxg5) 55. Bxh6+ $4 {[%emt 0:00:01][%mdl 8192]} Rxh6 $19 {[%emt 0:00:02]} 56. Rg5 {[%cal Oh2h6] [#] White threatens Rxh6! and mate.} Rf6 $4 {[%emt 0:00:03][%mdl 8192]} 57. Rxh6 $18 {[%emt 0:00:06]} Kxh6 {[%emt 0:00:01]} 58. Rxg6+ {[%emt 0:00:03]} Rxg6 {[%emt 0:00:00][%mdl 4096] Endgame KQ-KRB} 59. Qh4+ {[%emt 0:00:01]} Kg7 {[%emt 0:00:01] ...Rh6 would be deadly.} 60. Qd8 {[%emt 0:00:01]} Kh6 {[%emt 0:00:01]} 61. Qxa5 {[%emt 0:00:01]} Kg5 {[%emt 0:00:01]} 62. Qd8+ {[%emt 0:00:01]} Kf4 {[%emt 0:00:00]} 63. Qh4+ {[%emt 0:00:02]} Ke3 {[%emt 0:00:01]} 64. a5 {[%emt 0:00:00][%cal Ba4a5,Ba5a6][%mdl 32]} Kd4 {[%emt 0:00:06]} 65. a6 {[%emt 0:00:04]} Bb8 {[%emt 0:00:05]} 66. Qf2+ {[%emt 0:00:02]} Kc3 {[%emt 0:00:02]} 67. Qxc5 {[%emt 0:00:02]} Rxa6 {[%emt 0:00:01]} 68. Qb5 {[%emt 0:00:00]} Ra1+ {[%emt 0:00:05]} 69. Kg2 {[%emt 0:00:01]} Ba7 {[%emt 0:00:02]} 70. c5 {[%emt 0:00:01] And now d6 would win.} Kxb3 {[%emt 0:00:01]} 71. d6 {[%emt 0:00:02] White mates.} Ra2+ {[%emt 0:00:01]} 72. Kf3 {[%emt 0:00:01]} Rd2 {[%emt 0:00:01]} 73. Qa5 {[%emt 0:00:02]} Bb8 {[%emt 0:00:03]} 74. Qb6 {[%emt 0:00:00]} Kc3 {[%emt 0:00:03]} 75. Qxb8 {[%emt 0:00:01]} b3 76. c6 {[%emt 0:00:02] What a bad dream for Black. A cool game by Giri.   Weighted Error Value: White=0.45/Black=0.43} 1-0

[Event "Superbet Blitz Poland 2023"]
[Site "Warsaw"]
[Date "2023.05.24"]
[Round "1"]
[White "Deac, Bogdan-Daniel"]
[Black "Shevchenko, Kirill"]
[Result "0-1"]
[ECO "A38"]
[WhiteElo "2700"]
[BlackElo "2684"]
[Annotator "TA"]
[PlyCount "83"]
[EventDate "2023.05.24"]
[EventType "tourn"]
[EventCountry "POL"]
[SourceTitle "playchess.com"]
[Source "ChessBase"]
[SourceQuality "1"]
[TimeControl "300+2"]

{[%evp 15,83,1,51,0,5,24,31,38,38,31,30,16,9,2,6,-19,-15,-31,-9,-13,-12,-31,0,0,0,0,0,0,0,-17,0,-39,-20,-82,53,-21,0,-30,0,-27,-16,-18,7,-17,0,-191,22,-88,-83,-90,-71,-108,-85,-108,-80,-93,-50,-50,-50,-50,-50,-51,-3,-8,-10,-77,-70,-71,22,-206]} 1. Nf3 {[%emt 0:00:03]} Nf6 {[%emt 0:00:02]} 2. b3 {[%emt 0:00:04]} g6 {[%emt 0:00:06]} 3. Bb2 {[%emt 0:00:01]} Bg7 {[%emt 0:00:02]} 4. g3 {[%emt 0:00:01]} c5 {[%emt 0:00:06]} 5. c4 {[%emt 0:00:01]} d6 {[%emt 0:00:04]} 6. Bg2 {[%emt 0:00:09]} Nc6 {[%emt 0:00:06]} 7. O-O {[%emt 0:00:06]} O-O {[%emt 0:00:02]} 8. Nc3 {[%emt 0:00:17]} Bf5 {[%emt 0:00:54]} ({Black should play} 8... Ne4 $11) 9. h3 {[%emt 0:00:13] A38: Symmetrical English vs ...g6: 4 Bg2 Bg7 5 Nf3 Nf6.} (9. d4 $14) 9... Ne4 {[%emt 0:00:15]} 10. Na4 {[%emt 0:00:30] [#]} Nf6 $146 {[%emt 0:00:17]} ({Predecessor:} 10... Bxb2 11. Nxb2 Nf6 12. d4 cxd4 13. Nxd4 Bd7 14. Qd2 Nxd4 15. Qxd4 Bc6 16. Rfd1 Qa5 {1-0 Jacobsen,B-Rosenlund,T Aarhus VRS Solskinsturnering-02 1975 (5)}) 11. d4 {[%emt 0:01:27] White is slightly better.} cxd4 {[%emt 0:00:02]} 12. Nxd4 {[%emt 0:00:03]} Bd7 13. Nf3 {[%emt 0:00:59]} Rc8 {[%emt 0:00:15]} 14. Rc1 {[%emt 0:00:06]} Qa5 {[%emt 0:00:20]} 15. a3 {[%emt 0:00:22]} Rfd8 {[%emt 0:00:06]} 16. Bc3 {[%emt 0:00:51]} Qc7 {[%emt 0:00:02]} (16... Qa6 $5 {[%cal Rc6e5]}) 17. Nb2 {[%emt 0:00:11]} Qb8 {[%emt 0:00:04]} 18. Nd3 {[%emt 0:00:06]} a5 {[%emt 0:00:22]} 19. a4 {[%emt 0:00:04]} e5 {[%emt 0:00:04] aiming for ...e4.} 20. Nd2 {[%emt 0:00:03]} Be6 {[%emt 0:00:09]} 21. e4 {[%emt 0:00:01]} Nd7 {[%emt 0:00:02]} 22. Ne1 {[%emt 0:00:03]} Nc5 {[%emt 0:00:04]} 23. Nc2 {[%emt 0:00:01]} Bh6 {[%emt 0:00:10]} 24. Ne3 {[%emt 0:00:03] [#]} (24. Rb1 $11 {keeps the balance.}) 24... Nd4 {[%emt 0:00:04] Black has more active pieces.} (24... Bxe3 $1 $17 25. fxe3 Rf8) 25. Rb1 {[%emt 0:00:03]} (25. Bxa5 $14 Re8 26. Rb1) 25... b6 {[%emt 0:00:20]} 26. Kh2 {[%emt 0:00:01]} Rf8 {[%emt 0:00:01]} 27. Ng4 {[%emt 0:00:03]} Bg7 {[%emt 0:00:05]} 28. Ne3 {[%emt 0:00:01]} h5 {[%emt 0:00:08]} 29. h4 {[%emt 0:00:02]} Bh6 {[%emt 0:00:01]} 30. Nf3 $2 {[%emt 0:00:02]} (30. f4 $11 {and White has nothing to worry.}) 30... Nxf3+ $2 {[%emt 0:00:51]} ({Weaker is} 30... Nxe4 31. Bxd4 exd4 32. Qxd4 $14) ({Better is} 30... Bxe3 $19 31. fxe3 Ndxb3) 31. Bxf3 {[%emt 0:00:03]} (31. Qxf3 $11 Qc7 32. Rfd1) 31... Bxe3 $17 {[%emt 0:00:04]} 32. fxe3 {[%emt 0:00:01]} Qc7 {[%emt 0:00:07]} 33. Bg2 {[%emt 0:00:02]} Qe7 {[%emt 0:00:03]} 34. Qc2 {[%emt 0:00:03]} Bd7 {[%emt 0:00:02]} 35. Rbd1 {[%emt 0:00:02]} Bc6 {[%emt 0:00:01]} 36. Bb2 {[%emt 0:00:01]} Rcd8 {[%emt 0:00:02]} 37. Ba3 {[%emt 0:00:02]} Qe6 {[%emt 0:00:04]} 38. Rd2 {[%emt 0:00:03]} Qg4 {[%emt 0:00:31]} (38... Kg7 $15 {was preferrable.}) 39. Bxc5 $11 {[%emt 0:00:02]} dxc5 {[%emt 0:00:01]} 40. Rdf2 {[%emt 0:00:04] [#]} (40. Rf6 $11 {remains equal.} Qc8 41. Qd1 Rxd2 42. Qxd2) 40... Rd6 $1 $17 {[%emt 0:00:08]} 41. Rf6 {[%emt 0:00:01]} Rfd8 {[%emt 0:00:06]} (41... Qd7 $17) 42. Rxd6 $2 {[%emt 0:00:05] Weighted Error Value: White=0.33/Black=0.32} (42. Rxf7 $11 Qe6 43. Qf2) 0-1

[Event "Superbet Blitz Poland 2023"]
[Site "Warsaw"]
[Date "2023.05.24"]
[Round "1"]
[White "Wojtaszek, Radoslaw"]
[Black "So, Wesley"]
[Result "1/2-1/2"]
[ECO "D37"]
[WhiteElo "2670"]
[BlackElo "2760"]
[Annotator "TA"]
[PlyCount "81"]
[EventDate "2023.05.24"]
[EventType "tourn"]
[EventCountry "POL"]
[SourceTitle "playchess.com"]
[Source "ChessBase"]
[SourceQuality "1"]
[TimeControl "300+2"]

{[%evp 18,81,21,21,21,12,16,13,18,11,12,14,10,10,13,13,14,13,22,4,1,9,10,12,7,0,0,0,0,0,12,0,1,0,0,0,27,27,27,27,28,8,8,8,8,8,11,8,16,0,0,0,0,0,0,0,0,0,0,0,0,0,0,0,0,0]} 1. d4 {[%emt 0:00:01]} Nf6 {[%emt 0:00:03]} 2. c4 {[%emt 0:00:02]} e6 {[%emt 0:00:01]} 3. Nf3 {[%emt 0:00:02]} d5 {[%emt 0:00:01]} 4. Nc3 {[%emt 0:00:02]} Be7 {[%emt 0:00:02]} 5. Bf4 {[%emt 0:00:02]} O-O {[%emt 0:00:02]} 6. e3 {[%emt 0:00:01]} Nbd7 {[%emt 0:00:02]} 7. Be2 {[%emt 0:00:04]} dxc4 {[%emt 0:00:05]} 8. O-O {[%emt 0:00:03][%cal Bh1f1,Bf1d1,Bd1d6][%mdl 32]} c5 {[%emt 0:00:08]} 9. dxc5 {[%emt 0:00:13]} Nxc5 {[%emt 0:00:09]} 10. Bxc4 {[%emt 0:00:19]} Qxd1 {[%emt 0:00:02] D37: Queen's Gambit Declined: 5 Bf4.} 11. Rfxd1 {[%emt 0:00:02]} b6 {[%emt 0:00:00]} 12. Bd6 {[%emt 0:00:18]} Bxd6 {[%emt 0:00:02]} 13. Rxd6 {[%emt 0:00:01]} Bb7 {[%emt 0:00:02]} 14. Rad1 {[%emt 0:00:03]} Bxf3 {[%emt 0:00:24]} 15. gxf3 {[%emt 0:00:01]} Nb7 {[%emt 0:00:03] Black is weak on the light squares} 16. R6d4 {[%emt 0:00:12]} Rfd8 {[%emt 0:00:03]} 17. f4 {[%emt 0:00:12]} Kf8 {[%emt 0:00:39]} 18. Be2 {[%emt 0:00:03]} Rxd4 {[%emt 0:00:03]} 19. Rxd4 {[%emt 0:00:01]} Rc8 {[%emt 0:00:19] [#]} 20. Ba6 $146 {[%emt 0:00:54]} ({Predecessor:} 20. Bf3 Nc5 21. Nb5 a5 22. Na7 Rc7 23. Nc6 Rd7 24. Rxd7 Nfxd7 25. Kf1 Nd3 26. b3 {½-½ Le,Q (2709)-So,W (2772) Aimchess US Rapid Prelim 2021 (4)}) 20... Rc7 {[%emt 0:00:09]} 21. Bxb7 {[%emt 0:00:01]} Rxb7 $11 {[%emt 0:00:01][%mdl 4096] Endgame KRN-KRN} 22. Rd8+ {[%emt 0:00:02]} Ke7 {[%emt 0:00:01]} 23. Ra8 {[%emt 0:00:01]} b5 {[%emt 0:00:29]} 24. Kf1 {[%emt 0:00:10]} h6 {[%emt 0:00:15]} 25. h4 {[%emt 0:00:09]} b4 {[%emt 0:00:35]} 26. Ne2 {[%emt 0:00:01]} b3 {[%emt 0:00:33]} 27. axb3 {[%emt 0:00:04]} Ne4 {[%emt 0:00:02]} 28. Nd4 {[%emt 0:00:08]} Kf6 {[%emt 0:00:08]} 29. Kg2 {[%emt 0:00:57]} g5 {[%emt 0:00:10] The position is equal.} 30. hxg5+ {[%emt 0:00:10]} hxg5 {[%emt 0:00:01]} 31. fxg5+ {[%emt 0:00:32]} Kxg5 {[%emt 0:00:01]} 32. f4+ {[%emt 0:00:08]} Kh6 {[%emt 0:00:14]} 33. Kf3 {[%emt 0:00:16]} Nd2+ {[%emt 0:00:01]} 34. Ke2 {[%emt 0:00:21]} Nxb3 {[%emt 0:00:04]} 35. Nxb3 {[%emt 0:00:01]} Rxb3 {[%emt 0:00:01]} 36. Rxa7 {[%emt 0:00:01]} Rxb2+ {[%emt 0:00:01] KR-KR} 37. Kf3 {[%emt 0:00:01]} Kg6 {[%emt 0:00:01]} 38. Ra8 {[%emt 0:00:01]} Rc2 {[%emt 0:00:02]} 39. Ra7 {[%emt 0:00:01]} Rb2 {[%emt 0:00:01]} 40. Ra8 {[%emt 0:00:01]} Rc2 {[%emt 0:00:01]} 41. Ra7 {[%emt 0:00:01] A rather calm draw.   Weighted Error Value: White=0.03 (flawless) /Black=0.02 (flawless)} 1/2-1/2